[Event "57th Biel Festival ATO 2024"]
[Site "Biel"]
[Date "2024.07.22"]
[Round "6.14"]
[White "Primbetova, Raikhan"]
[Black "Schneuwly, Achim"]
[Result "0-1"]
[ECO "A10"]
[WhiteElo "1534"]
[BlackElo "1933"]
[Annotator "RC"]
[PlyCount "56"]
[EventDate "2024.07.03"]
[EventType "swiss"]
[EventCountry "SUI"]
[SourceTitle "playchess.com"]
[Source "ChessBase"]
[SourceQuality "1"]
[TimeControl "40/5400+30:1800+30"]

1. c4 {[%emt 0:00:03]} g6 {[%emt 0:00:12]} 2. g3 {[%emt 0:00:04]} Bg7 {[%emt 0:00:09]} 3. Bg2 {[%emt 0:00:04]} d6 {[%emt 0:00:31]} 4. Nc3 {[%emt 0:00:36]} Nh6 {[%emt 0:03:33]} 5. d3 {[%emt 0:11:01]} O-O {[%emt 0:00:29]} 6. e3 {[%emt 0:00:37]} f5 {[%emt 0:04:30]} 7. Nge2 {[%emt 0:00:50]} c6 {[%emt 0:03:39]} 8. O-O {[%emt 0:00:26]} e5 {[%emt 0:01:05]} 9. e4 {[%emt 0:00:45]} Na6 {[%emt 0:02:53]} 10. h3 {[%emt 0:05:34]} f4 {[%emt 0:05:05]} 11. f3 {[%emt 0:08:55]} fxg3 {[%emt 0:03:59]} 12. Qe1 {[%emt 0:17:43]} Nb4 {[%emt 0:02:46]} 13. Qxg3 {[%emt 0:03:10]} Nxd3 {[%emt 0:01:06]} 14. Kh1 {[%emt 0:08:06]} Nxc1 {[%emt 0:02:25]} 15. Raxc1 {[%emt 0:00:03]} Be6 {[%emt 0:01:37]} 16. b3 {[%emt 0:01:21]} Nf7 {[%emt 0:03:22]} 17. Rcd1 {[%emt 0:04:40]} Qe7 {[%emt 0:04:02]} 18. h4 {[%emt 0:01:22]} Bf6 {[%emt 0:02:08]} 19. h5 {[%emt 0:02:06]} Bh4 {[%emt 0:00:12]} 20. Qh2 {[%emt 0:00:09]} gxh5 {[%emt 0:06:01]} 21. Bh3 {[%emt 0:09:42]} Bxh3 {[%emt 0:00:06]} 22. Rg1+ {[%emt 0:02:47]} Kh8 {[%emt 0:00:07]} 23. Qxh3 {[%emt 0:00:06]} Rg8 {[%emt 0:00:10]} 24. Rgf1 {[%emt 0:02:56]} Rg6 {[%emt 0:11:59]} 25. Rd3 {[%emt 0:02:48]} Rag8 {[%emt 0:02:50]} 26. Nd1 {[%emt 0:00:50]} Bg5 {[%emt 0:08:13]} 27. Ng3 {[%emt 0:02:48]} Bf4 {[%emt 0:01:15]} 28. Nf5 {[%emt 0:00:46]} Qg5 {[%emt 0:02:25]} 0-1

[Event "57th Biel Festival ATO 2024"]
[Site "Biel"]
[Date "2024.07.22"]
[Round "6.15"]
[White "Bangerter, Daria"]
[Black "Pantillon, Patrick Andre"]
[Result "0-1"]
[ECO "B03"]
[WhiteElo "1931"]
[BlackElo "1782"]
[Annotator "ChessBase"]
[PlyCount "89"]
[EventDate "2024.07.03"]
[EventType "swiss"]
[EventCountry "SUI"]
[SourceTitle "playchess.com"]
[Source "ChessBase"]
[SourceQuality "1"]
[TimeControl "40/5400+30:1800+30"]

1. e4 {[%emt 0:00:04]} Nf6 {[%emt 0:00:21]} 2. e5 {[%emt 0:00:29]} Nd5 {[%emt 0:00:44]} 3. d4 {[%emt 0:00:08]} d6 {[%emt 0:00:30]} 4. c4 {[%emt 0:00:29]} Nb6 {[%emt 0:00:18]} 5. f4 {[%emt 0:00:15]} dxe5 {[%emt 0:04:27]} 6. fxe5 {[%emt 0:00:18]} Nc6 {[%emt 0:00:45]} 7. Be3 {[%emt 0:00:22]} Bf5 {[%emt 0:00:56]} 8. Nc3 {[%emt 0:00:24]} e6 {[%emt 0:00:33]} 9. Be2 {[%emt 0:00:56]} Bb4 {[%emt 0:09:18]} 10. Nf3 {[%emt 0:05:25]} O-O {[%emt 0:03:24]} 11. O-O {[%emt 0:01:20]} Na5 {[%emt 0:02:43]} 12. c5 {[%emt 0:09:31]} Nbc4 {[%emt 0:03:16]} 13. Bg5 {[%emt 0:10:07]} Qd7 {[%emt 0:08:06]} 14. Na4 {[%emt 0:02:13]} h6 {[%emt 0:01:17]} 15. Bc1 {[%emt 0:01:49]} b5 {[%emt 0:02:38]} 16. a3 {[%emt 0:21:14]} Bxa3 {[%emt 0:01:30]} 17. bxa3 {[%emt 0:00:44]} bxa4 {[%emt 0:00:30]} 18. Bf4 {[%emt 0:09:58]} Nb2 {[%emt 0:09:05]} 19. Qd2 {[%emt 0:03:45]} Nb3 {[%emt 0:08:24]} 20. Qxb2 {[%emt 0:01:07]} Nxa1 {[%emt 0:00:15]} 21. Rxa1 {[%emt 0:06:21]} Rab8 {[%emt 0:00:29]} 22. Qd2 {[%emt 0:01:45]} Rb3 {[%emt 0:05:26]} 23. Bc4 {[%emt 0:02:13]} Rfb8 {[%emt 0:04:02]} 24. Bxb3 {[%emt 0:06:14]} axb3 {[%emt 0:00:14]} 25. Qb2 {[%emt 0:01:56]} c6 {[%emt 0:02:14]} 26. Bd2 {[%emt 0:10:27]} Qd5 {[%emt 0:02:59]} 27. Rc1 {[%emt 0:01:37]} Be4 {[%emt 0:04:09]} 28. Ne1 {[%emt 0:01:19]} Rd8 {[%emt 0:04:27]} 29. Bc3 {[%emt 0:00:24]} Rd7 {[%emt 0:01:58]} 30. Qe2 {[%emt 0:00:38]} f6 {[%emt 0:02:44]} 31. exf6 {[%emt 0:01:01]} gxf6 {[%emt 0:00:09]} 32. Bb2 {[%emt 0:00:53]} Rg7 {[%emt 0:02:29]} 33. Rd1 {[%emt 0:00:39]} f5 {[%emt 0:02:25]} 34. Kh1 {[%emt 0:00:45]} h5 {[%emt 0:01:07]} 35. Rd2 {[%emt 0:00:27]} h4 {[%emt 0:01:43]} 36. h3 {[%emt 0:00:31]} Rg3 {[%emt 0:00:28]} 37. Kg1 {[%emt 0:00:23]} f4 {[%emt 0:01:21]} 38. Kh2 {[%emt 0:00:40]} Qf5 {[%emt 0:05:40]} 39. Kg1 {[%emt 0:00:35]} Bd5 {[%emt 0:01:52]} 40. Kf1 {[%emt 0:00:28]} Bxg2+ {[%emt 0:03:27]} 41. Nxg2 {[%emt 0:13:49]} f3 {[%emt 0:00:35]} 42. Qe1 {[%emt 0:07:06]} fxg2+ {[%emt 0:00:55]} 43. Kg1 {[%emt 0:00:52]} Qxh3 {[%emt 0:02:43]} 44. Rd1 {[%emt 0:01:59]} Rf3 {[%emt 0:00:53]} 45. Qxe6+ {[%emt 0:01:59]} 0-1

[Event "57th Biel Festival ATO 2024"]
[Site "Biel"]
[Date "2024.07.22"]
[Round "6.16"]
[White "Hofer, Friedrich"]
[Black "Aegerter, Fabrice"]
[Result "0-1"]
[ECO "C55"]
[WhiteElo "1798"]
[BlackElo "1917"]
[Annotator "ChessBase"]
[PlyCount "26"]
[EventDate "2024.07.03"]
[EventType "swiss"]
[EventCountry "SUI"]
[SourceTitle "playchess.com"]
[Source "ChessBase"]
[SourceQuality "1"]
[TimeControl "40/5400+30:1800+30"]

1. e4 {[%emt 0:00:07]} e5 {[%emt 0:01:44]} 2. Nf3 {[%emt 0:00:16]} Nc6 {[%emt 0:00:10]} 3. Bc4 {[%emt 0:00:14]} Nf6 {[%emt 0:00:16]} 4. d3 {[%emt 0:00:15]} Bb4+ {[%emt 0:00:14]} 5. c3 {[%emt 0:00:30]} Ba5 {[%emt 0:00:11]} 6. O-O {[%emt 0:01:41]} d6 {[%emt 0:02:49]} 7. Nbd2 {[%emt 0:02:02]} Bg4 {[%emt 0:05:02]} 8. h3 {[%emt 0:03:37]} Bh5 {[%emt 0:01:56]} 9. Re1 {[%emt 0:00:14]} Qd7 {[%emt 0:07:14]} 10. Nf1 {[%emt 0:00:13]} Nd4 {[%emt 0:14:59]} 11. Re3 {[%emt 0:05:22]} Nxf3+ {[%emt 0:08:37]} 12. Rxf3 {[%emt 0:00:19]} Bxf3 {[%emt 0:01:38]} 13. Ne3 {[%emt 0:02:37]} Ng8 {[%emt 0:38:42]} 0-1

[Event "57th Biel Festival ATO 2024"]
[Site "Biel"]
[Date "2024.07.22"]
[Round "6.18"]
[White "Retti, Marco"]
[Black "Jordan, Theodor"]
[Result "0-1"]
[ECO "B22"]
[WhiteElo "1772"]
[BlackElo "1894"]
[Annotator "NA RC"]
[PlyCount "92"]
[EventDate "2024.07.03"]
[EventType "swiss"]
[EventCountry "SUI"]
[SourceTitle "playchess.com"]
[Source "ChessBase"]
[SourceQuality "1"]
[TimeControl "40/5400+30:1800+30"]

1. e4 {[%emt 0:00:05]} c5 {[%emt 0:00:04]} 2. c3 {[%emt 0:00:08]} d5 {[%emt 0:00:09]} 3. exd5 {[%emt 0:00:07]} Qxd5 {[%emt 0:00:07]} 4. Nf3 {[%emt 0:00:05]} Nc6 {[%emt 0:00:13]} 5. d4 {[%emt 0:03:20]} Bf5 {[%emt 0:00:49]} 6. Bb5 {[%emt 0:01:44]} O-O-O {[%emt 0:10:22]} 7. Bxc6 {[%emt 0:01:55]} Qxc6 {[%emt 0:01:16]} 8. O-O {[%emt 0:02:12]} Bg4 {[%emt 0:02:03]} 9. Qd3 {[%emt 0:03:46]} Bxf3 {[%emt 0:02:21]} 10. gxf3 {[%emt 0:01:42]} cxd4 {[%emt 0:14:40]} 11. cxd4 {[%emt 0:03:50]} Qg6+ {[%emt 0:00:48]} 12. Qxg6 {[%emt 0:01:17]} hxg6 {[%emt 0:00:01]} 13. Be3 {[%emt 0:01:33]} e6 {[%emt 0:01:02]} 14. Rc1+ {[%emt 0:03:54]} Kb8 {[%emt 0:00:49]} 15. Bf4+ {[%emt 0:00:07]} Bd6 {[%emt 0:00:13]} 16. Bxd6+ {[%emt 0:00:57]} Rxd6 {[%emt 0:00:01]} 17. Rd1 {[%emt 0:00:09]} Rd5 {[%emt 0:04:41]} 18. Nc3 {[%emt 0:00:20]} Rg5+ {[%emt 0:00:30]} 19. Kf1 {[%emt 0:00:18]} Nf6 {[%emt 0:00:28]} 20. Ne4 {[%emt 0:02:01]} Nxe4 {[%emt 0:00:45]} 21. fxe4 {[%emt 0:00:07]} Rxh2 {[%emt 0:00:42]} 22. d5 {[%emt 0:00:21]} exd5 {[%emt 0:02:08]} 23. exd5 {[%emt 0:00:16]} Rh1+ {[%emt 0:00:32]} 24. Ke2 {[%emt 0:00:34]} Re5+ {[%emt 0:00:58]} 25. Kf3 {[%emt 0:01:03]} Rxd1 {[%emt 0:00:02]} 26. Rxd1 {[%emt 0:00:14]} Kc7 {[%emt 0:00:11]} 27. d6+ {[%emt 0:01:58]} Kd7 {[%emt 0:00:03]} 28. Rd4 {[%emt 0:02:40]} Rf5+ {[%emt 0:02:33]} 29. Ke3 {[%emt 0:00:42]} Rf6 {[%emt 0:00:42]} 30. Rb4 {[%emt 0:03:12]} b6 {[%emt 0:01:06]} 31. Ra4 {[%emt 0:00:08]} a5 {[%emt 0:00:34]} 32. b4 {[%emt 0:00:32]} Rf5 {[%emt 0:01:30]} 33. bxa5 {[%emt 0:00:28]} Rxa5 {[%emt 0:00:05]} 34. Rb4 {[%emt 0:00:24]} b5 {[%emt 0:00:21]} 35. a4 {[%emt 0:00:05]} bxa4 {[%emt 0:00:32]} 36. Rb7+ {[%emt 0:03:50]} Kxd6 {[%emt 0:00:07]} 37. Kd4 {[%emt 0:00:06]} a3 {[%emt 0:00:41]} 38. Rb6+ {[%emt 0:00:25]} Ke7 {[%emt 0:00:15]} 39. Rb7+ {[%emt 0:00:14]} Kf6 {[%emt 0:00:05]} 40. Rb6+ {[%emt 0:00:29]} Kf5 {[%emt 0:00:11]} 41. Rb1 {[%emt 0:31:59]} a2 {[%emt 0:30:04]} 42. Ra1 {[%emt 0:00:05]} Kf4 {[%emt 0:00:04]} 43. Kc4 {[%emt 0:00:09]} Kf3 {[%emt 0:00:06]} 44. Kb3 {[%emt 0:01:04]} Kxf2 {[%emt 0:00:11]} 45. Kb2 {[%emt 0:00:03]} g5 {[%emt 0:00:14]} 46. Rc1 {[%emt 0:00:12]} a1=Q+ {[%emt 0:00:07]} 0-1

[Event "57th Biel Festival ATO 2024"]
[Site "Biel"]
[Date "2024.07.22"]
[Round "6.19"]
[White "Szelag, Zuzanna"]
[Black "Trubini, Timon"]
[Result "1-0"]
[ECO "B99"]
[WhiteElo "1897"]
[BlackElo "1714"]
[Annotator "NA RC"]
[PlyCount "51"]
[EventDate "2024.07.03"]
[EventType "swiss"]
[EventCountry "SUI"]
[SourceTitle "playchess.com"]
[Source "ChessBase"]
[SourceQuality "1"]
[TimeControl "40/5400+30:1800+30"]

1. e4 {[%emt 0:00:06]} c5 {[%emt 0:00:04]} 2. Nf3 {[%emt 0:00:05]} d6 {[%emt 0:00:05]} 3. d4 {[%emt 0:00:03]} cxd4 {[%emt 0:00:02]} 4. Nxd4 {[%emt 0:00:04]} Nf6 {[%emt 0:00:06]} 5. Nc3 {[%emt 0:00:04]} a6 {[%emt 0:00:05]} 6. Bg5 {[%emt 0:00:32]} e6 {[%emt 0:00:06]} 7. f4 {[%emt 0:00:04]} Be7 {[%emt 0:00:05]} 8. Qf3 {[%emt 0:00:10]} Qc7 {[%emt 0:00:07]} 9. O-O-O {[%emt 0:00:21]} Nbd7 {[%emt 0:00:03]} 10. g4 {[%emt 0:00:05]} h6 {[%emt 0:00:09]} 11. Bxf6 {[%emt 0:01:23]} Bxf6 {[%emt 0:00:06]} 12. Bg2 {[%emt 0:03:00]} g5 {[%emt 0:02:47]} 13. f5 {[%emt 0:06:00]} Ne5 {[%emt 0:01:08]} 14. Qg3 {[%emt 0:01:15]} Bd7 {[%emt 0:10:04]} 15. Rhf1 {[%emt 0:03:14]} O-O {[%emt 0:07:17]} 16. Nce2 {[%emt 0:22:22]} Rac8 {[%emt 0:03:30]} 17. Qb3 {[%emt 0:05:50]} Nc4 {[%emt 0:05:23]} 18. fxe6 {[%emt 0:14:05]} fxe6 {[%emt 0:01:08]} 19. Rf3 {[%emt 0:05:10]} Na5 {[%emt 0:03:35]} 20. Qd3 {[%emt 0:01:00]} Nc6 {[%emt 0:04:58]} 21. Nxc6 {[%emt 0:05:31]} Qxc6 {[%emt 0:00:17]} 22. e5 {[%emt 0:03:38]} dxe5 {[%emt 0:04:58]} 23. Qg6+ {[%emt 0:00:17]} Kh8 {[%emt 0:00:59]} 24. Qxh6+ {[%emt 0:00:06]} Kg8 {[%emt 0:00:26]} 25. Qg6+ {[%emt 0:00:04]} Kh8 {[%emt 0:00:10]} 26. Rh3# {[%emt 0:00:04]} 1-0

[Event "57th Biel Festival ATO 2024"]
[Site "Biel"]
[Date "2024.07.22"]
[Round "6.20"]
[White "Hansen, Michael Bo"]
[Black "Schmid, Nicola"]
[Result "0-1"]
[ECO "E34"]
[WhiteElo "1759"]
[BlackElo "1888"]
[Annotator "NA"]
[PlyCount "132"]
[EventDate "2024.07.03"]
[EventType "swiss"]
[EventCountry "SUI"]
[SourceTitle "playchess.com"]
[Source "ChessBase"]
[SourceQuality "1"]
[TimeControl "40/5400+30:1800+30"]

1. d4 {[%emt 0:00:05]} Nf6 {[%emt 0:00:08]} 2. c4 {[%emt 0:00:10]} e6 {[%emt 0:00:14]} 3. Nc3 {[%emt 0:00:16]} Bb4 {[%emt 0:00:17]} 4. Qc2 {[%emt 0:00:42]} d5 {[%emt 0:01:15]} 5. e3 {[%emt 0:01:50]} O-O {[%emt 0:00:22]} 6. Bd3 {[%emt 0:01:02]} dxc4 {[%emt 0:02:22]} 7. Bxc4 {[%emt 0:00:14]} a6 {[%emt 0:00:04]} 8. a3 {[%emt 0:03:59]} Be7 {[%emt 0:03:18]} 9. Nge2 {[%emt 0:06:06]} b5 {[%emt 0:01:23]} 10. Bd3 {[%emt 0:02:28]} Bb7 {[%emt 0:00:59]} 11. O-O {[%emt 0:00:45]} c5 {[%emt 0:05:09]} 12. dxc5 {[%emt 0:01:07]} Nbd7 {[%emt 0:01:14]} 13. b4 {[%emt 0:01:21]} Ne5 {[%emt 0:00:24]} 14. Rd1 {[%emt 0:02:58]} Qc7 {[%emt 0:01:46]} 15. Bb2 {[%emt 0:04:02]} Rfd8 {[%emt 0:02:27]} 16. Ng3 {[%emt 0:09:07]} h5 {[%emt 0:07:00]} 17. Nce4 {[%emt 0:06:30]} h4 {[%emt 0:15:41]} 18. Nxf6+ {[%emt 0:01:41]} gxf6 {[%emt 0:05:02]} 19. Bxe5 {[%emt 0:10:22]} Qxe5 {[%emt 0:02:13]} 20. Nf1 {[%emt 0:07:22]} Rac8 {[%emt 0:05:55]} 21. Rac1 {[%emt 0:02:52]} Kh8 {[%emt 0:02:00]} 22. f3 {[%emt 0:07:22]} f5 {[%emt 0:17:01]} 23. Qc3 {[%emt 0:05:27]} Qxc3 {[%emt 0:02:46]} 24. Rxc3 {[%emt 0:00:02]} Bf6 {[%emt 0:00:09]} 25. Rc2 {[%emt 0:00:28]} Bd5 {[%emt 0:01:16]} 26. Be2 {[%emt 0:04:44]} Bb3 {[%emt 0:03:18]} 27. Rxd8+ {[%emt 0:00:29]} Rxd8 {[%emt 0:00:31]} 28. Rd2 {[%emt 0:00:32]} Rd5 {[%emt 0:02:42]} 29. Rxd5 {[%emt 0:05:19]} Bxd5 {[%emt 0:00:12]} 30. Nd2 {[%emt 0:00:52]} Bb2 {[%emt 0:02:05]} 31. Nb1 {[%emt 0:00:36]} Kg7 {[%emt 0:00:41]} 32. Bd3 {[%emt 0:01:40]} Kf6 {[%emt 0:01:40]} 33. Kf2 {[%emt 0:03:27]} Ba2 {[%emt 0:04:44]} 34. e4 {[%emt 0:04:26]} f4 {[%emt 0:03:49]} 35. g3 {[%emt 0:03:49]} hxg3+ {[%emt 0:00:42]} 36. hxg3 {[%emt 0:00:02]} fxg3+ {[%emt 0:00:13]} 37. Kxg3 {[%emt 0:00:02]} Bxb1 {[%emt 0:04:06]} 38. Bxb1 {[%emt 0:00:01]} Bxa3 {[%emt 0:00:22]} 39. e5+ {[%emt 0:02:36]} Kxe5 {[%emt 0:03:38]} 40. f4+ {[%emt 0:00:02]} Kf6 {[%emt 0:00:43]} 41. Be4 {[%emt 0:08:03]} Ke7 {[%emt 0:05:21]} 42. Bb7 {[%emt 0:01:11]} a5 {[%emt 0:01:36]} 43. c6 {[%emt 0:03:03]} Kd6 {[%emt 0:00:19]} 44. bxa5 {[%emt 0:00:17]} Bc5 {[%emt 0:00:21]} 45. c7 {[%emt 0:05:51]} Kxc7 {[%emt 0:00:35]} 46. Be4 {[%emt 0:00:35]} Kd6 {[%emt 0:02:11]} 47. f5 {[%emt 0:04:43]} Ke5 {[%emt 0:00:35]} 48. fxe6 {[%emt 0:02:55]} fxe6 {[%emt 0:00:26]} 49. Kf3 {[%emt 0:01:23]} Kd4 {[%emt 0:00:35]} 50. Bb1 {[%emt 0:04:08]} e5 {[%emt 0:01:00]} 51. Ke2 {[%emt 0:00:22]} e4 {[%emt 0:01:07]} 52. a6 {[%emt 0:01:44]} e3 {[%emt 0:00:58]} 53. Bf5 {[%emt 0:03:24]} Kc3 {[%emt 0:00:42]} 54. Be4 {[%emt 0:00:15]} b4 {[%emt 0:00:42]} 55. Kd1 {[%emt 0:00:15]} Kb2 {[%emt 0:00:58]} 56. Bd5 {[%emt 0:01:27]} b3 {[%emt 0:06:06]} 57. Bf3 {[%emt 0:01:01]} Ka1 {[%emt 0:00:32]} 58. Be4 {[%emt 0:01:21]} b2 {[%emt 0:00:10]} 59. Ke2 {[%emt 0:00:06]} b1=Q {[%emt 0:00:17]} 60. Bxb1 {[%emt 0:00:10]} Kxb1 {[%emt 0:00:08]} 61. Kd1 {[%emt 0:00:16]} Kb2 {[%emt 0:00:10]} 62. a7 {[%emt 0:00:20]} Bxa7 {[%emt 0:00:04]} 63. Ke2 {[%emt 0:00:06]} Kc3 {[%emt 0:00:10]} 64. Kd1 {[%emt 0:00:20]} Kd3 {[%emt 0:00:12]} 65. Ke1 {[%emt 0:00:08]} Bb8 {[%emt 0:00:24]} 66. Kd1 {[%emt 0:00:04]} e2+ {[%emt 0:00:13]} 0-1

[Event "57th Biel Festival ATO 2024"]
[Site "Biel"]
[Date "2024.07.22"]
[Round "6.21"]
[White "Bangerter, Ena"]
[Black "Keymer, Cecilia"]
[Result "1/2-1/2"]
[ECO "B13"]
[WhiteElo "1771"]
[BlackElo "1865"]
[Annotator "NA"]
[PlyCount "104"]
[EventDate "2024.07.03"]
[EventType "swiss"]
[EventCountry "SUI"]
[SourceTitle "playchess.com"]
[Source "ChessBase"]
[SourceQuality "1"]
[TimeControl "40/5400+30:1800+30"]

1. d4 {[%emt 0:00:05]} d5 {[%emt 0:00:05]} 2. Bf4 {[%emt 0:00:04]} c5 {[%emt 0:00:09]} 3. e3 {[%emt 0:00:05]} cxd4 {[%emt 0:00:13]} 4. exd4 {[%emt 0:00:07]} Nc6 {[%emt 0:00:28]} 5. c3 {[%emt 0:00:14]} Bf5 {[%emt 0:00:33]} 6. Nd2 {[%emt 0:00:24]} e6 {[%emt 0:01:27]} 7. Ngf3 {[%emt 0:00:20]} Nge7 {[%emt 0:02:37]} 8. Qb3 {[%emt 0:01:43]} Qd7 {[%emt 0:01:32]} 9. Ne5 {[%emt 0:04:17]} Nxe5 {[%emt 0:01:47]} 10. Bxe5 {[%emt 0:00:33]} Nc6 {[%emt 0:02:06]} 11. Bb5 {[%emt 0:01:39]} f6 {[%emt 0:04:07]} 12. Bg3 {[%emt 0:03:38]} Bd6 {[%emt 0:04:25]} 13. Nf3 {[%emt 0:17:30]} h5 {[%emt 0:07:04]} 14. Nh4 {[%emt 0:03:29]} Be4 {[%emt 0:03:09]} 15. Qd1 {[%emt 0:07:55]} g5 {[%emt 0:06:33]} 16. Nf3 {[%emt 0:01:45]} h4 {[%emt 0:03:24]} 17. Bxd6 {[%emt 0:02:44]} Qxd6 {[%emt 0:00:48]} 18. Bd3 {[%emt 0:02:43]} Qf4 {[%emt 0:04:41]} 19. Bxe4 {[%emt 0:04:55]} Qxe4+ {[%emt 0:06:11]} 20. Qe2 {[%emt 0:01:23]} h3 {[%emt 0:07:44]} 21. g3 {[%emt 0:05:16]} g4 {[%emt 0:03:00]} 22. Qxe4 {[%emt 0:00:22]} dxe4 {[%emt 0:00:07]} 23. Nd2 {[%emt 0:03:34]} f5 {[%emt 0:01:28]} 24. Nc4 {[%emt 0:02:22]} Ke7 {[%emt 0:03:42]} 25. O-O-O {[%emt 0:04:37]} Rhd8 {[%emt 0:03:13]} 26. Ne3 {[%emt 0:04:59]} Rac8 {[%emt 0:02:31]} 27. Kb1 {[%emt 0:02:16]} b5 {[%emt 0:02:06]} 28. b4 {[%emt 0:06:05]} Kf6 {[%emt 0:06:17]} 29. Kb2 {[%emt 0:05:17]} Ne7 {[%emt 0:05:41]} 30. Ra1 {[%emt 0:07:02]} a5 {[%emt 0:07:00]} 31. a3 {[%emt 0:00:06]} a4 {[%emt 0:02:57]} 32. Rad1 {[%emt 0:01:14]} Nd5 {[%emt 0:01:07]} 33. Rc1 {[%emt 0:01:20]} Rc6 {[%emt 0:03:35]} 34. Rc2 {[%emt 0:03:43]} Nb6 {[%emt 0:01:39]} 35. Rd1 {[%emt 0:01:50]} Nc4+ {[%emt 0:02:07]} 36. Ka2 {[%emt 0:00:28]} Rcd6 {[%emt 0:01:16]} 37. Nxc4 {[%emt 0:01:18]} bxc4 {[%emt 0:00:05]} 38. Rcd2 {[%emt 0:00:46]} Rd5 {[%emt 0:01:15]} 39. Kb2 {[%emt 0:00:24]} Kg5 {[%emt 0:00:40]} 40. Kc2 {[%emt 0:00:39]} Rf8 {[%emt 0:00:42]} 41. Re1 {[%emt 0:03:18]} Rfd8 {[%emt 0:05:15]} 42. Ree2 {[%emt 0:03:50]} Kf6 {[%emt 0:02:16]} 43. Kc1 {[%emt 0:06:11]} Ke7 {[%emt 0:02:35]} 44. Kc2 {[%emt 0:03:03]} Kd6 {[%emt 0:02:52]} 45. Kc1 {[%emt 0:01:23]} Rb5 {[%emt 0:00:27]} 46. Re1 {[%emt 0:02:27]} Kd5 {[%emt 0:00:36]} 47. Rde2 {[%emt 0:04:44]} Rf8 {[%emt 0:01:21]} 48. Kc2 {[%emt 0:03:40]} Rb7 {[%emt 0:00:32]} 49. Kc1 {[%emt 0:00:56]} Kc6 {[%emt 0:01:42]} 50. Kc2 {[%emt 0:01:12]} Kb5 {[%emt 0:01:08]} 51. Kc1 {[%emt 0:00:39]} Rd7 {[%emt 0:00:11]} 52. Rd2 {[%emt 0:01:36]} Rd5 {[%emt 0:00:35]} 1/2-1/2

[Event "57th Biel Festival ATO 2024"]
[Site "Biel"]
[Date "2024.07.22"]
[Round "6.23"]
[White "Sushrutha, Reddy"]
[Black "Gafner, Lancelot"]
[Result "0-1"]
[ECO "C38"]
[WhiteElo "1649"]
[BlackElo "1864"]
[Annotator "NA"]
[PlyCount "128"]
[EventDate "2024.07.03"]
[EventType "swiss"]
[EventCountry "SUI"]
[SourceTitle "playchess.com"]
[Source "ChessBase"]
[SourceQuality "1"]
[TimeControl "40/5400+30:1800+30"]

1. e4 {[%emt 0:00:08]} e5 {[%emt 0:00:30]} 2. f4 {[%emt 0:00:16]} exf4 {[%emt 0:00:20]} 3. Nf3 {[%emt 0:00:03]} d6 {[%emt 0:00:26]} 4. Bc4 {[%emt 0:00:13]} h6 {[%emt 0:00:23]} 5. d4 {[%emt 0:00:08]} g5 {[%emt 0:00:17]} 6. O-O {[%emt 0:00:15]} Bg7 {[%emt 0:00:26]} 7. c3 {[%emt 0:00:45]} Nc6 {[%emt 0:05:17]} 8. Re1 {[%emt 0:00:17]} Nge7 {[%emt 0:03:06]} 9. Nbd2 {[%emt 0:01:05]} O-O {[%emt 0:11:15]} 10. h3 {[%emt 0:00:57]} Ng6 {[%emt 0:06:05]} 11. Qc2 {[%emt 0:00:14]} Nce7 {[%emt 0:07:02]} 12. Bd3 {[%emt 0:01:32]} c6 {[%emt 0:08:06]} 13. Nf1 {[%emt 0:00:30]} Be6 {[%emt 0:03:17]} 14. Kh2 {[%emt 0:06:24]} d5 {[%emt 0:10:38]} 15. e5 {[%emt 0:00:38]} Qd7 {[%emt 0:00:50]} 16. h4 {[%emt 0:02:40]} g4 {[%emt 0:06:08]} 17. h5 {[%emt 0:00:39]} gxf3 {[%emt 0:02:35]} 18. hxg6 {[%emt 0:00:31]} fxg6 {[%emt 0:03:27]} 19. gxf3 {[%emt 0:01:54]} Bf5 {[%emt 0:05:31]} 20. Re2 {[%emt 0:00:10]} Qe6 {[%emt 0:05:12]} 21. Kh1 {[%emt 0:01:12]} Bxd3 {[%emt 0:01:59]} 22. Qxd3 {[%emt 0:00:03]} Rf5 {[%emt 0:01:29]} 23. Rh2 {[%emt 0:02:27]} Raf8 {[%emt 0:00:34]} 24. Bd2 {[%emt 0:00:10]} Rg5 {[%emt 0:02:39]} 25. Re1 {[%emt 0:00:38]} Rgf5 {[%emt 0:05:05]} 26. Ree2 {[%emt 0:01:30]} Rg5 {[%emt 0:02:28]} 27. Rh4 {[%emt 0:00:51]} Qf5 {[%emt 0:01:55]} 28. Qxf5 {[%emt 0:00:32]} Rgxf5 {[%emt 0:00:08]} 29. Rg2 {[%emt 0:00:57]} g5 {[%emt 0:01:07]} 30. Rh3 {[%emt 0:01:29]} Ng6 {[%emt 0:00:54]} 31. Be1 {[%emt 0:00:32]} R5f7 {[%emt 0:01:49]} 32. Nh2 {[%emt 0:00:25]} Ne7 {[%emt 0:01:10]} 33. Ng4 {[%emt 0:01:20]} Nf5 {[%emt 0:00:24]} 34. Rgh2 {[%emt 0:01:38]} Kh7 {[%emt 0:03:16]} 35. Kg1 {[%emt 0:03:37]} Kg6 {[%emt 0:00:48]} 36. Kf1 {[%emt 0:01:52]} Ng3+ {[%emt 0:01:05]} 37. Kg2 {[%emt 0:01:29]} h5 {[%emt 0:00:39]} 38. Ne3 {[%emt 0:02:39]} h4 {[%emt 0:00:36]} 39. Ng4 {[%emt 0:00:52]} Kf5 {[%emt 0:00:28]} 40. Kg1 {[%emt 0:01:03]} Kg6 {[%emt 0:00:22]} 41. Rc2 {[%emt 0:30:55]} Rd8 {[%emt 0:03:39]} 42. Rhh2 {[%emt 0:00:00]} c5 {[%emt 0:03:31]} 43. Bf2 {[%emt 0:00:00]} c4 {[%emt 0:01:44]} 44. Be1 {[%emt 0:00:00]} b5 {[%emt 0:03:06]} 45. Rhd2 {[%emt 0:00:00]} Nf5 {[%emt 0:02:20]} 46. Re2 {[%emt 0:00:00]} Ng3 {[%emt 0:02:23]} 47. Red2 {[%emt 0:00:00]} a5 {[%emt 0:00:50]} 48. Rh2 {[%emt 0:00:00]} Nf5 {[%emt 0:04:30]} 49. Rhe2 {[%emt 0:00:00]} Ng3 {[%emt 0:02:01]} 50. Rh2 {[%emt 0:00:00]} Rb7 {[%emt 0:01:00]} 51. a3 {[%emt 0:00:00]} Nf5 {[%emt 0:02:20]} 52. Rhe2 {[%emt 0:00:00]} Nh6 {[%emt 0:00:51]} 53. Rg2 {[%emt 0:00:00]} Nf5 {[%emt 0:03:03]} 54. Rge2 {[%emt 0:00:00]} Ng3 {[%emt 0:02:04]} 55. Red2 {[%emt 0:00:00]} Nf5 {[%emt 0:01:28]} 56. Kh2 {[%emt 0:00:00]} Rf8 {[%emt 0:02:04]} 57. Rg2 {[%emt 0:00:00]} Rd8 {[%emt 0:01:25]} 58. Rc1 {[%emt 0:00:00]} Rf7 {[%emt 0:00:24]} 59. Bf2 {[%emt 0:00:00]} Rb7 {[%emt 0:00:14]} 60. Rcg1 {[%emt 0:00:00]} h3 {[%emt 0:00:48]} 61. Kxh3 {[%emt 0:01:56]} Rh8+ {[%emt 0:00:05]} 62. Nh6 {[%emt 0:00:14]} Rxh6+ {[%emt 0:00:05]} 63. Kg4 {[%emt 0:00:13]} Ne3+ {[%emt 0:00:13]} 64. Bxe3 {[%emt 0:00:10]} Rh4# {[%emt 0:00:03]} 0-1